bitfinex/quotes_BTCUSD_20221001
["timestamp","ask_amount","ask_price","bid_price","bid_amount"]
[1664650202090,0.00483909,19295.0,19294.0,3.4937661]
[1664650203151,0.00483909,19295.0,19294.0,3.4197661]
[1664650203384,0.00483909,19295.0,19294.0,4.1197661]
[1664650203652,0.00483909,19295.0,19294.0,4.16030068]
[1664650203897,0.00483909,19295.0,19294.0,4.23430068]
[1664650204580,0.00483909,19295.0,19294.0,4.60509856]
[1664650205036,0.00483909,19295.0,19294.0,4.53109856]
[1664650205258,0.00483909,19295.0,19294.0,4.49056398]
[1664650205949,0.00483909,19295.0,19294.0,4.56956398]
[1664650206181,0.00483909,19295.0,19294.0,4.61009856]
[1664650206641,0.00483909,19295.0,19294.0,4.56956398]
[1664650207096,0.00483909,19295.0,19294.0,4.49056398]
[1664650207571,0.00483909,19295.0,19294.0,4.53109856]
[1664650207777,0.00483909,19295.0,19294.0,4.91009856]
[1664650208021,0.00483909,19295.0,19294.0,4.61009856]
[1664650208760,0.00483909,19295.0,19294.0,4.56956398]
[1664650208986,0.00483909,19295.0,19294.0,4.49056398]
[1664650209444,0.00483909,19295.0,19294.0,4.53705]
[1664650209669,0.00483909,19295.0,19294.0,4.83705]
[1664650209899,0.00483909,19295.0,19294.0,4.95658458]
[1664650210617,0.00483909,19295.0,19294.0,2.91658458]
[1664650210850,0.00483909,19295.0,19294.0,3.21658458]
[1664650211096,0.00483909,19295.0,19294.0,3.2868208]
[1664650211320,0.00483909,19295.0,19294.0,3.19836105]
[1664650211778,0.00483909,19295.0,19294.0,2.91905905]
[1664650212009,0.00483909,19295.0,19294.0,5.10582264]
[1664650212963,0.00483909,19295.0,19294.0,5.02682264]
[1664650213195,0.00483909,19295.0,19294.0,4.93836105]
[1664650213416,0.00483909,19295.0,19294.0,4.51928258]
[1664650213642,0.00483909,19295.0,19294.0,4.87758458]
[1664650213938,0.00483909,19295.0,19294.0,5.01736105]
[1664650214171,0.00483909,19295.0,19294.0,5.10573407]
[1664650214400,0.00483909,19295.0,19294.0,5.01736105]
[1664650214627,0.00483909,19295.0,19294.0,4.95658458]
[1664650215078,0.00483909,19295.0,19294.0,4.87758458]
[1664650215311,0.00474865,19295.0,19294.0,4.87758458]
[1664650215768,0.00474865,19295.0,19294.0,4.95658458]
[1664650216718,0.00474865,19295.0,19294.0,6.64107657]
[1664650217132,0.00474865,19295.0,19294.0,6.56207657]
[1664650217870,0.00474865,19295.0,19294.0,6.64107657]
[1664650219129,0.00474865,19295.0,19294.0,6.34107657]
[1664650219345,0.00474865,19295.0,19294.0,6.26207657]
[1664650219557,0.00474865,19295.0,19294.0,6.22154199]
[1664650219796,0.00474865,19295.0,19294.0,6.34107657]
[1664650220379,0.00474865,19295.0,19294.0,6.64107657]
[1664650220595,0.00474865,19295.0,19294.0,6.34107657]
[1664650221034,0.00474865,19295.0,19294.0,6.64107657]
[1664650221304,0.00474865,19295.0,19294.0,6.56207657]
[1664650221990,0.00474865,19295.0,19294.0,6.64107657]
[1664650222205,0.00474865,19295.0,19294.0,6.30045235]
[1664650222374,0.00474865,19295.0,19294.0,5.92965447]
[1664650222597,0.00474865,19295.0,19294.0,6.30045235]
[1664650222809,0.00474865,19295.0,19294.0,8.65547064]
[1664650223019,0.00474865,19295.0,19294.0,8.87647064]
[1664650223392,0.00474865,19295.0,19294.0,8.57647064]
[1664650223818,0.00474865,19295.0,19294.0,8.65547064]
[1664650224967,0.00474865,19295.0,19294.0,8.57647064]
[1664650225430,0.00474865,19295.0,19294.0,8.61700522]
[1664650225893,0.00474865,19295.0,19294.0,8.69600522]
[1664650226140,0.00474865,19295.0,19294.0,8.99600522]
[1664650227061,0.00474865,19295.0,19294.0,8.97778169]
[1664650227286,0.00474865,19295.0,19294.0,8.91700522]
[1664650227506,0.00474865,19295.0,19294.0,8.97778169]
[1664650227735,0.00474865,19295.0,19294.0,9.18601993]
[1664650227966,0.00474865,19295.0,19294.0,9.14531558]
[1664650229110,0.00474865,19295.0,19294.0,9.06632102]
[1664650229330,0.00474865,19295.0,19294.0,8.97767266]
[1664650229571,0.00474865,19295.0,19294.0,8.61689619]
[1664650229784,0.00474865,19295.0,19294.0,8.69589619]
[1664650229997,0.00474865,19295.0,19294.0,9.14532485]
[1664650230216,0.00474865,19295.0,19294.0,9.1860292]
[1664650230464,0.00474865,19295.0,19294.0,9.1048993]
[1664650230690,0.00474865,19295.0,19294.0,9.14532876]
[1664650231345,0.20958798,19295.0,19294.0,1.7423765]
[1664650231582,0.58038586,19295.0,19294.0,0.05334306]
[1664650231832,0.58038586,19295.0,19294.0,0.13234306]
[1664650231833,0.818292,19295.0,19294.0,0.13234306]
[1664650232063,2.28209869,19295.0,19294.0,0.13234306]
[1664650232295,1.86748829,19295.0,19294.0,0.13234306]
[1664650232516,2.17842559,19295.0,19294.0,0.13234306]
[1664650232749,1.8284256,19295.0,19294.0,0.13234306]
[1664650232979,1.2174883,19295.0,19294.0,0.05334306]
[1664650233259,1.4674883,19295.0,19294.0,0.05334306]
[1664650233493,1.2174883,19295.0,19294.0,0.05334306]
[1664650234846,1.77686452,19295.0,19294.0,0.05334306]
[1664650235060,1.34667373,19295.0,19294.0,0.05334306]
[1664650235293,1.59667373,19295.0,19294.0,0.05334306]
[1664650235514,1.89667373,19295.0,19294.0,0.05334306]
[1664650235749,1.59667373,19295.0,19294.0,0.05334306]
[1664650236420,1.29667374,19295.0,19294.0,0.05334306]
[1664650236643,0.99667374,19295.0,19294.0,0.05334306]
[1664650237342,1.21305782,19295.0,19294.0,0.05334306]
[1664650237573,1.51305782,19295.0,19294.0,0.05334306]
[1664650237795,0.91305783,19295.0,19294.0,0.05334306]
[1664650238466,0.61305783,19295.0,19294.0,0.05334306]
[1664650239126,0.24225995,19295.0,19294.0,0.05334306]
[1664650239356,0.61305783,19295.0,19294.0,0.05334306]
[1664650248226,0.58805783,19295.0,19294.0,0.05334306]
[1664650248754,0.73755631,19295.0,19294.0,0.05334306]
[1664650250256,1.03755631,19295.0,19294.0,0.05334306]
[1664650252176,1.83755631,19295.0,19288.0,1.38585368]
[1664650252447,1.83755631,19295.0,19291.0,0.1]
[1664650252448,1.09022038,19294.0,19291.0,0.1]
[1664650252683,0.88538105,19294.0,19291.0,0.61173144]
[1664650252906,0.88538105,19294.0,19293.0,0.129676]
[1664650253134,1.01493905,19294.0,19293.0,0.129676]
[1664650254277,1.31493905,19294.0,19293.0,0.129676]
[1664650254504,1.01493905,19294.0,19293.0,0.129676]
[1664650255255,0.64859193,19294.0,19293.0,0.129676]
[1664650257767,0.518295,19294.0,19293.0,0.129676]
[1664650259270,0.60596395,19295.0,19293.0,0.129676]
[1664650259494,1.12423595,19295.0,19293.0,0.129676]
[1664650259711,0.60596395,19295.0,19293.0,0.129676]
[1664650261582,0.97231107,19295.0,19293.0,0.129676]
[1664650261799,0.60596395,19295.0,19293.0,0.129676]
[1664650265010,0.97231107,19295.0,19293.0,0.129676]
[1664650265288,0.60596395,19295.0,19293.0,0.129676]
[1664650265526,1.13655836,19295.0,19293.0,0.129676]
[1664650266427,0.77021124,19295.0,19293.0,0.129676]
[1664650266640,1.13655836,19295.0,19293.0,0.129676]
[1664650267207,0.77021124,19295.0,19293.0,0.129676]
[1664650267939,1.13655836,19295.0,19293.0,0.129676]
[1664650268706,1.13655836,19295.0,19293.0,0.259353]
[1664650268707,0.60596395,19295.0,19293.0,0.259353]
[1664650268924,0.60596395,19295.0,19294.0,0.14967762]
[1664650269385,0.36634712,19296.0,19294.0,0.66140906]
[1664650269618,0.0022,19297.0,19295.0,2.28605818]
[1664650269845,0.0022,19297.0,19296.0,1.714664]
[1664650270054,0.0022,19297.0,19296.0,3.00951622]
[1664650270323,0.0022,19297.0,19296.0,3.74951622]
[1664650270559,0.0022,19297.0,19296.0,3.39121422]
[1664650271014,0.0022,19297.0,19296.0,4.37796372]
[1664650271223,0.0022,19297.0,19296.0,5.27796372]
[1664650271445,0.0022,19297.0,19296.0,3.39121422]
[1664650271922,0.0022,19297.0,19296.0,4.64951622]
[1664650272371,0.0022,19297.0,19296.0,3.74951622]
[1664650272585,0.0022,19297.0,19296.0,3.39121422]
[1664650273670,0.0022,19297.0,19296.0,3.52077422]
[1664650273882,0.0022,19297.0,19296.0,3.52817422]
[1664650274131,0.0022,19297.0,19296.0,3.78729522]
[1664650275516,0.0020846,19297.0,19296.0,3.78729522]
[1664650277102,0.0020846,19297.0,19296.0,4.14559722]
[1664650277328,0.0020846,19297.0,19296.0,3.78729522]
[1664650277730,0.0020846,19297.0,19296.0,4.30553722]
[1664650278002,0.0020846,19297.0,19296.0,5.20553722]
[1664650279713,0.0020846,19297.0,19296.0,5.56383922]
[1664650279928,0.0020846,19297.0,19296.0,5.20553722]
[1664650280150,0.0020846,19297.0,19296.0,5.56383922]
[1664650280361,0.0020846,19297.0,19296.0,5.20553722]
[1664650280619,0.0020846,19297.0,19296.0,5.56383922]
[1664650281488,0.0020846,19297.0,19296.0,5.15553722]
[1664650281708,0.0020846,19297.0,19296.0,4.60691622]
[1664650281959,0.0020846,19297.0,19296.0,5.51383922]
[1664650282286,0.0020846,19297.0,19296.0,5.15553722]
[1664650282435,0.0020846,19297.0,19296.0,5.51383922]
[1664650282668,0.0020846,19297.0,19296.0,5.25553722]
[1664650283133,0.0020846,19297.0,19296.0,5.61383922]
[1664650283304,0.0020846,19297.0,19296.0,5.25553722]
[1664650283514,0.0020846,19297.0,19296.0,5.61383922]
[1664650284532,0.0020846,19297.0,19296.0,5.25553722]
[1664650286285,0.0020846,19297.0,19296.0,5.61383922]
[1664650286711,0.0020846,19297.0,19296.0,5.25553722]
[1664650286949,0.0020846,19297.0,19296.0,5.61383922]
[1664650287330,0.0020846,19297.0,19296.0,5.25553722]
[1664650288780,0.0020846,19297.0,19296.0,5.61383922]
[1664650288991,0.0020846,19297.0,19296.0,5.25553722]
[1664650289485,0.0020846,19297.0,19296.0,5.61383922]
[1664650289671,0.0020846,19297.0,19296.0,5.25553722]
[1664650289873,0.0020846,19297.0,19296.0,5.61383922]
[1664650290099,0.0020846,19297.0,19296.0,5.25553722]
[1664650290321,0.0020846,19297.0,19296.0,5.61983922]
[1664650290807,0.0020846,19297.0,19296.0,5.26153722]
[1664650291042,0.0020846,19297.0,19296.0,8.28588157]
[1664650291257,0.0020846,19297.0,19296.0,7.92757957]
[1664650291378,0.0020846,19297.0,19296.0,7.92157957]
[1664650291588,0.0020846,19297.0,19296.0,8.27988157]
[1664650291854,0.0020846,19297.0,19296.0,7.92157957]
[1664650292336,0.0020846,19297.0,19296.0,7.92757957]
[1664650292556,0.0020846,19297.0,19296.0,8.28588157]
[1664650292776,0.0020846,19297.0,19296.0,7.92757957]
[1664650293220,0.0020846,19297.0,19296.0,8.28588157]
[1664650293444,0.0020846,19297.0,19296.0,8.27988157]
[1664650293883,0.0020846,19297.0,19296.0,7.92157957]
[1664650294115,0.0020846,19297.0,19296.0,8.27988157]
[1664650294334,0.0020846,19297.0,19296.0,8.35788157]
[1664650294839,0.0020846,19297.0,19296.0,5.69183922]
[1664650295288,0.0020846,19297.0,19296.0,5.33353722]
[1664650295511,0.0020846,19297.0,19296.0,5.61383922]
[1664650296185,0.0020846,19297.0,19296.0,5.26153722]
[1664650296402,0.0020846,19297.0,19296.0,5.61983922]
[1664650296620,0.0020846,19297.0,19296.0,5.26153722]
[1664650297335,0.0020846,19297.0,19296.0,5.61983922]
[1664650297559,0.0020846,19297.0,19296.0,5.25553722]
[1664650297780,0.0020846,19297.0,19296.0,5.61383922]
[1664650298007,0.0020846,19297.0,19296.0,5.25553722]
[1664650298235,0.0020846,19297.0,19296.0,5.26153722]
[1664650298466,0.0020846,19297.0,19296.0,5.61983922]
[1664650298712,0.0020846,19297.0,19296.0,5.26153722]
[1664650299180,0.0020846,19297.0,19296.0,5.61983922]
[1664650299393,0.0020846,19297.0,19296.0,5.26153722]
[1664650299601,0.0020846,19297.0,19296.0,5.61383922]
[1664650299821,0.0020846,19297.0,19296.0,5.25553722]
[1664650300044,0.00198461,19297.0,19296.0,5.61383922]
[1664650300270,0.00198461,19297.0,19296.0,5.26153722]
[1664650300493,0.001,19299.0,19298.0,0.14967762]
[1664650300723,0.001,19299.0,19298.0,2.34185614]
[1664650301008,0.001,19299.0,19298.0,4.08185614]
[1664650301009,0.006,19299.0,19298.0,4.08185614]
[1664650301452,0.005,19299.0,19298.0,4.72151882]
[1664650301681,0.005,19299.0,19298.0,5.02004582]
[1664650301915,0.005,19299.0,19298.0,5.37834782]
[1664650302375,0.005,19299.0,19298.0,5.38974782]
[1664650302861,0.005,19299.0,19298.0,5.05008514]
[1664650303320,0.005,19299.0,19298.0,5.35008514]
[1664650303571,0.005,19299.0,19298.0,5.04608514]
[1664650303803,0.005,19299.0,19298.0,4.88943558]
[1664650304031,0.005,19299.0,19298.0,5.24773758]
[1664650304256,0.005,19299.0,19298.0,5.25173758]
[1664650305609,0.005,19299.0,19298.0,5.24773758]
[1664650306304,0.005,19299.0,19298.0,5.26673758]
[1664650307587,0.005,19299.0,19298.0,5.24773758]
[1664650307979,0.005,19299.0,19298.0,5.54773758]
[1664650308196,0.005,19299.0,19298.0,5.32673758]
[1664650308532,0.0022,19300.0,19299.0,2.34659962]
[1664650308739,0.0022,19300.0,19299.0,3.87993611]
[1664650308954,0.0022,19300.0,19299.0,5.61993611]
[1664650309217,0.0022,19300.0,19299.0,5.98628323]
[1664650309890,0.001,19301.0,19300.0,0.14967762]
[1664650310194,0.001,19301.0,19300.0,2.06485311]
[1664650310413,0.001,19301.0,19300.0,3.30880906]
[1664650311936,0.001,19301.0,19300.0,3.66711106]
[1664650312151,0.001,19301.0,19300.0,4.03345818]
[1664650313486,0.001,19301.0,19300.0,3.30880906]
[1664650313974,0.001,19301.0,19300.0,3.66711106]
[1664650314183,0.001,19301.0,19300.0,4.16038847]
[1664650315062,0.001,19301.0,19300.0,3.26038847]
[1664650315294,0.001,19301.0,19300.0,2.25913144]
[1664650315517,0.001,19301.0,19300.0,2.61743344]
[1664650315748,0.001,19301.0,19300.0,2.25913144]
[1664650316445,0.001,19301.0,19300.0,2.29313144]
[1664650317330,0.001,19301.0,19300.0,2.65143344]
[1664650317590,0.001,19301.0,19300.0,2.25913144]
[1664650317840,0.001,19301.0,19300.0,2.25173144]
[1664650318543,0.001,19301.0,19300.0,2.25161688]
[1664650319201,0.001,19301.0,19300.0,2.30161688]
[1664650321028,0.001,19301.0,19300.0,2.25161688]
[1664650321241,0.001,19301.0,19300.0,2.30161688]
[1664650321503,0.001,19301.0,19300.0,2.25161688]
[1664650321743,0.001,19301.0,19300.0,2.30161688]
[1664650322156,0.001,19301.0,19300.0,2.25161688]
[1664650323176,0.001,19301.0,19300.0,2.30161688]
[1664650323398,0.001,19301.0,19300.0,2.25161688]
[1664650327553,0.001,19301.0,19300.0,2.84802527]
[1664650327781,0.001,19301.0,19300.0,2.89802527]
[1664650328016,0.001,19301.0,19300.0,2.53972327]
[1664650328459,0.001,19301.0,19300.0,3.27177239]
[1664650328920,0.001,19301.0,19300.0,2.54712327]
[1664650329650,0.001,19301.0,19300.0,3.27177239]
[1664650329872,0.001,19301.0,19300.0,3.11206605]
[1664650330558,0.001,19301.0,19300.0,2.74571893]
[1664650331453,0.001,19301.0,19300.0,3.47036805]
[1664650332004,0.001,19301.0,19300.0,3.11206605]
[1664650332571,0.001,19301.0,19300.0,2.74571893]
[1664650333359,0.001,19301.0,19300.0,2.74562247]
[1664650333598,0.001,19301.0,19300.0,3.10916816]
[1664650334502,0.001,19301.0,19300.0,2.74282104]
[1664650334729,0.001,19301.0,19300.0,3.10916816]
[1664650335168,0.001,19301.0,19300.0,3.46747016]
[1664650335650,0.001,19301.0,19300.0,3.10112304]
[1664650335876,0.001,19301.0,19300.0,2.74282104]
[1664650336103,0.001,19301.0,19300.0,2.50471465]
[1664650336326,0.001,19301.0,19300.0,2.58171465]
[1664650337246,0.001,19301.0,19300.0,2.94806177]
[1664650337481,0.001,19301.0,19300.0,3.30636377]
[1664650337716,0.001,19301.0,19300.0,3.22936377]
[1664650337952,0.001,19301.0,19300.0,2.87106177]
[1664650338181,0.001,19301.0,19300.0,3.22936377]
[1664650338407,0.001,19301.0,19300.0,2.87106177]
[1664650338632,0.001,19301.0,19300.0,3.36710582]
[1664650338842,0.001,19301.0,19300.0,3.72540782]
[1664650339969,0.001,19301.0,19300.0,3.36710582]
[1664650340470,0.001,19301.0,19300.0,3.72540782]
[1664650341261,0.001,19301.0,19300.0,3.36710582]
[1664650341499,0.001,19301.0,19300.0,3.72540782]
[1664650342430,0.001,19301.0,19300.0,3.40110582]
[1664650342651,0.001,19301.0,19300.0,3.75940782]
[1664650343354,0.001,19301.0,19300.0,3.40110582]
[1664650343575,0.001,19301.0,19300.0,3.75940782]
[1664650343788,0.001,19301.0,19300.0,3.72540782]
[1664650344489,0.001,19301.0,19300.0,3.75940782]
[1664650345738,0.001,19301.0,19300.0,3.72040782]
[1664650346386,0.001,19301.0,19300.0,3.75440782]
[1664650347357,0.001,19301.0,19300.0,3.39610582]
[1664650347574,0.001,19301.0,19300.0,3.36210582]
[1664650348248,0.001,19301.0,19300.0,3.72040782]
[1664650348533,0.001,19301.0,19300.0,3.72640782]
[1664650349424,0.001,19301.0,19300.0,3.36810582]
[1664650349555,0.001,19301.0,19300.0,3.72040782]
[1664650350321,0.001,19301.0,19300.0,3.36210582]
[1664650350545,0.001,19301.0,19300.0,2.46361254]
[1664650351278,0.001,19301.0,19300.0,0.72361254]
[1664650351279,0.05598,19301.0,19300.0,0.72361254]
[1664650351518,0.05598,19301.0,19300.0,1.07451454]
[1664650351519,0.112,19301.0,19300.0,1.07451454]
[1664650351744,0.112,19301.0,19300.0,0.71621254]
[1664650351974,0.1232,19301.0,19300.0,0.71621254]
[1664650352471,0.252726,19301.0,19300.0,0.51761688]
[1664650352717,0.252726,19301.0,19298.0,0.259284]
[1664650352718,0.75667065,19301.0,19298.0,0.259284]
[1664650352960,0.388603,19300.0,19299.0,1.51173144]
[1664650353177,0.5243471,19300.0,19299.0,1.25173144]
[1664650353401,0.5243471,19300.0,19299.0,0.51173144]
[1664650354343,0.5243471,19300.0,19298.0,0.77101544]
[1664650356245,0.5243471,19300.0,19299.0,1.74]
[1664650356524,0.77520265,19301.0,19299.0,2.25173144]
[1664650356525,0.24589165,19301.0,19299.0,2.25173144]
[1664650356765,0.001,19301.0,19300.0,0.51173144]
[1664650357235,0.001,19301.0,19300.0,2.25173144]
[1664650357437,0.001,19301.0,19300.0,2.30173144]
[1664650357687,0.001,19301.0,19300.0,2.25173144]
[1664650357933,0.001,19301.0,19300.0,2.30173144]
[1664650358160,0.001,19301.0,19300.0,2.25173144]
[1664650363069,0.001,19301.0,19300.0,0.51173144]
[1664650364849,0.001,19301.0,19300.0,0.56173144]
[1664650365488,0.001,19301.0,19300.0,0.51173144]
[1664650365817,0.001,19301.0,19300.0,0.56173144]
[1664650368555,0.001,19301.0,19300.0,0.6854376]
[1664650368755,0.001,19301.0,19300.0,1.0437396]
[1664650368974,0.001,19301.0,19300.0,0.6854376]
[1664650369598,0.001,19301.0,19300.0,1.83456793]
[1664650370725,0.001,19301.0,19300.0,1.71086177]
[1664650370904,0.001,19301.0,19300.0,0.81086177]
[1664650371964,0.001,19301.0,19300.0,0.76086177]
[1664650372575,0.001,19301.0,19300.0,0.51173144]
[1664650374005,0.001,19301.0,19300.0,0.56173144]
[1664650374452,0.001,19301.0,19300.0,0.51173144]
[1664650377278,0.389579,19301.0,19300.0,0.51173144]
[1664650377735,0.4803451,19301.0,19300.0,0.51173144]
[1664650381347,1.25655875,19301.0,19298.0,0.259284]
[1664650381603,1.25655875,19301.0,19298.0,0.77101544]
[1664650381825,0.388605,19300.0,19298.0,0.77101544]
[1664650382042,0.50518687,19300.0,19298.0,0.77101544]
[1664650385759,0.59167565,19301.0,19299.0,0.358302]
[1664650385986,0.59167565,19301.0,19298.0,0.90065344]
[1664650385987,0.20308665,19301.0,19298.0,0.90065344]
[1664650386201,0.20308665,19301.0,19298.0,1.49645456]
[1664650386419,0.20308665,19301.0,19298.0,1.03010744]
[1664650386886,0.59167565,19301.0,19299.0,0.14967762]
[1664650387173,0.59167565,19301.0,19299.0,0.51173144]
[1664650387388,0.389589,19301.0,19299.0,0.51173144]
[1664650387841,0.13053,19301.0,19299.0,0.51173144]
[1664650388321,0.001,19301.0,19299.0,0.74651897]
[1664650389015,0.001,19301.0,19300.0,2.25940365]
[1664650389237,0.001,19301.0,19300.0,1.95110165]
[1664650389458,0.001,19301.0,19300.0,1.61880906]
[1664650391529,0.001,19301.0,19300.0,1.98515618]
[1664650391743,0.001,19301.0,19300.0,1.91135346]
[1664650395977,0.001,19301.0,19300.0,2.27770058]
[1664650396244,0.001,19301.0,19300.0,1.91135346]
[1664650396930,0.001,19301.0,19300.0,2.27770058]
[1664650397130,0.001,19301.0,19300.0,1.91135346]
[1664650397740,0.001,19301.0,19300.0,2.27770058]
[1664650398182,0.001,19301.0,19300.0,1.91135346]
[1664650398565,0.001,19301.0,19300.0,2.27770058]
[1664650399011,0.001,19301.0,19300.0,1.91135346]
[1664650399449,0.001,19301.0,19300.0,3.97770058]
[1664650399643,0.001,19301.0,19300.0,5.37600258]
[1664650400535,0.001,19301.0,19300.0,6.82940258]
[1664650400773,0.001,19301.0,19300.0,6.52940258]
[1664650401919,0.00093781,19301.0,19300.0,6.45540258]
[1664650402787,0.00093781,19301.0,19300.0,6.52940258]
[1664650404542,0.00093781,19301.0,19300.0,6.45540258]
[1664650404810,0.00093781,19301.0,19300.0,6.52940258]
[1664650404958,0.00093781,19301.0,19300.0,6.82940258]
[1664650405866,0.00093781,19301.0,19300.0,6.75540258]
[1664650406096,0.00093781,19301.0,19300.0,6.09710058]
[1664650406413,0.00093781,19301.0,19300.0,6.45540258]
[1664650406632,0.00093781,19301.0,19300.0,6.52940258]
[1664650406839,0.00093781,19301.0,19300.0,6.82940258]
[1664650408026,0.00093781,19301.0,19300.0,6.09710058]
[1664650408157,0.00093781,19301.0,19300.0,6.45540258]
[1664650408633,0.00093781,19301.0,19300.0,5.82940258]
[1664650408848,0.00093781,19301.0,19300.0,6.52940258]
[1664650409979,0.00093781,19301.0,19300.0,5.75540258]
[1664650410199,0.00093781,19301.0,19300.0,5.39710058]
[1664650410412,0.00093781,19301.0,19300.0,5.75540258]
[1664650410624,0.00093781,19301.0,19300.0,4.04170058]
[1664650410896,0.00093781,19301.0,19300.0,3.67535346]
[1664650411108,0.00093781,19301.0,19300.0,3.22573144]
[1664650411907,0.00093781,19301.0,19300.0,3.27573144]
[1664650412105,0.00093781,19301.0,19300.0,3.20173144]
[1664650412531,0.00093781,19301.0,19300.0,2.30173144]
[1664650412776,0.00093781,19301.0,19300.0,2.37613144]
[1664650413947,0.00093781,19301.0,19300.0,2.30913144]
[1664650414816,0.00093781,19301.0,19300.0,2.38813144]
[1664650416000,0.00093781,19301.0,19300.0,2.30913144]
[1664650416212,0.00093781,19301.0,19300.0,2.66743344]
[1664650416435,0.00093781,19301.0,19300.0,2.30913144]
[1664650416767,0.00093781,19301.0,19300.0,2.38713144]
[1664650417080,0.00093781,19301.0,19300.0,2.74543344]
[1664650417326,0.00093781,19301.0,19300.0,2.82268571]
[1664650417819,0.00093781,19301.0,19300.0,2.46438371]
[1664650418036,0.00093781,19301.0,19300.0,2.30913144]
[1664650420501,0.00093781,19301.0,19300.0,3.56743344]
[1664650420713,0.00093781,19301.0,19300.0,2.30913144]
[1664650422762,0.00093781,19301.0,19300.0,3.20913144]
[1664650425532,0.00093781,19301.0,19300.0,3.56743344]
[1664650425757,0.00093781,19301.0,19300.0,4.01820556]
[1664650425758,0.00085845,19301.0,19300.0,4.01820556]
[1664650426579,0.00085845,19301.0,19300.0,3.65990356]
[1664650426757,0.00085845,19301.0,19300.0,4.01820556]
[1664650426941,0.00085845,19301.0,19300.0,4.02625068]
[1664650427156,0.00085845,19301.0,19300.0,3.65990356]
[1664650427680,0.00085845,19301.0,19300.0,4.02625068]
[1664650428077,0.00085845,19301.0,19300.0,3.65990356]
[1664650429508,0.00085845,19301.0,19300.0,4.02625068]
[1664650429743,0.00085845,19301.0,19300.0,4.38455268]
[1664650430182,0.00085845,19301.0,19300.0,5.08455268]
[1664650431073,0.00085845,19301.0,19300.0,4.72625068]
[1664650431355,0.00085845,19301.0,19300.0,5.08455268]
[1664650431570,0.00085845,19301.0,19300.0,4.02625068]
[1664650431909,0.00085845,19301.0,19300.0,4.38455268]
[1664650432132,0.00085845,19301.0,19300.0,4.02625068]
[1664650432837,0.00085845,19301.0,19300.0,4.06025068]
[1664650433064,0.00085845,19301.0,19300.0,4.41855268]
[1664650434208,0.00085845,19301.0,19300.0,4.38455268]
[1664650434880,0.00085845,19301.0,19300.0,4.41855268]
[1664650435810,0.00085845,19301.0,19300.0,4.06025068]
[1664650436020,0.00085845,19301.0,19300.0,4.38455268]
[1664650436947,0.00085845,19301.0,19300.0,4.41855268]
[1664650438094,0.00085845,19301.0,19300.0,4.38455268]
[1664650438765,0.0032,19303.0,19301.0,0.48665427]
[1664650439050,0.0032,19303.0,19302.0,4.12435814]
[1664650439269,0.0032,19303.0,19302.0,3.95637852]
[1664650440461,0.0032,19303.0,19302.0,2.35039687]
[1664650440690,0.0032,19303.0,19302.0,2.30173144]
[1664650442793,0.0032,19303.0,19302.0,2.25173144]
[1664650443951,0.0032,19303.0,19302.0,2.30173144]
[1664650444208,0.0032,19303.0,19302.0,2.35173144]
[1664650444672,0.0032,19303.0,19302.0,2.30913144]
[1664650446026,0.0032,19303.0,19302.0,2.25913144]
[1664650446348,0.001,19303.0,19302.0,2.25913144]
[1664650447300,0.001,19303.0,19302.0,2.30913144]
[1664650447517,0.001,19303.0,19302.0,0.51913144]
[1664650448668,0.001,19303.0,19302.0,0.61913144]
[1664650448885,0.001,19303.0,19302.0,0.75562269]
[1664650449106,0.001,19303.0,19302.0,2.35913144]
[1664650450336,0.131701,19305.0,19302.0,2.35913144]
[1664650450616,0.005,19304.0,19303.0,0.90056444]
[1664650450829,0.005,19304.0,19303.0,0.77095344]
[1664650451938,0.005,19304.0,19303.0,0.82095344]
[1664650453309,0.005,19304.0,19303.0,0.77095344]
[1664650455468,0.005,19304.0,19303.0,0.82095344]
[1664650455956,0.005,19304.0,19303.0,0.77095344]
[1664650461945,0.00488794,19304.0,19303.0,0.77095344]
[1664650462195,0.00488794,19304.0,19303.0,0.82095344]
[1664650462445,0.00488794,19304.0,19303.0,0.77095344]
[1664650463841,0.00488794,19304.0,19303.0,1.12925544]
[1664650464074,0.00488794,19304.0,19303.0,0.77095344]
[1664650464986,0.00488794,19304.0,19303.0,1.37066865]
[1664650465211,0.00488794,19304.0,19303.0,1.62969565]
[1664650467042,0.00488794,19304.0,19303.0,1.99604277]
[1664650467262,0.00488794,19304.0,19303.0,1.62969565]
[1664650467479,0.00488794,19304.0,19303.0,1.57969565]
[1664650467914,0.00488794,19304.0,19303.0,1.62969565]
[1664650468363,0.00488794,19304.0,19303.0,1.37066865]
[1664650470013,0.00488794,19304.0,19303.0,1.27066865]
[1664650470235,0.00488794,19304.0,19303.0,1.03741671]
[1664650470456,0.00488794,19304.0,19303.0,0.82835344]
[1664650471300,0.00488794,19304.0,19303.0,0.77835344]
[1664650471526,0.00488794,19304.0,19303.0,0.82835344]
[1664650471941,0.00488794,19304.0,19303.0,0.77835344]
[1664650472306,0.00488794,19304.0,19303.0,0.82835344]
[1664650472524,0.00488794,19304.0,19303.0,0.77835344]
[1664650474309,0.00488794,19304.0,19303.0,0.77095344]
[1664650477554,0.00488794,19304.0,19303.0,0.64134244]
[1664650478966,0.10031021,19304.0,19303.0,0.64134244]
[1664650480094,0.00488794,19304.0,19303.0,0.64134244]
[1664650481490,0.00488794,19304.0,19303.0,0.51173144]
[1664650481923,0.39340694,19304.0,19303.0,0.51173144]
[1664650484829,8.473e-05,19303.0,19302.0,0.77096144]
[1664650485057,8.473e-05,19303.0,19302.0,0.25923]
[1664650489883,0.906548,19304.0,19302.0,0.25923]
[1664650490109,1.0825469,19304.0,19302.0,0.25923]
[1664650494293,0.906548,19304.0,19303.0,0.358302]
[1664650494526,0.906548,19304.0,19302.0,0.25923]
[1664650494965,0.388521,19304.0,19302.0,0.25923]
[1664650497003,0.388521,19304.0,19302.0,0.62557712]
[1664650497226,0.388521,19304.0,19302.0,0.25923]
[1664650497444,0.388521,19304.0,19302.0,0.62557712]
[1664650497654,0.388521,19304.0,19303.0,2.098302]
[1664650497876,0.388521,19304.0,19302.0,0.388846]
[1664650498144,0.388521,19304.0,19303.0,1.74]
[1664650498384,0.0022,19305.0,19303.0,1.8624239]
[1664650498581,0.0022,19305.0,19304.0,0.14967762]
[1664650498799,0.0022,19305.0,19303.0,1.00055844]
[1664650499019,0.00708794,19305.0,19304.0,0.14967762]
[1664650499681,0.00708794,19305.0,19304.0,0.19967762]
[1664650499904,0.00708794,19305.0,19304.0,0.14967762]
[1664650500619,0.00708794,19305.0,19304.0,0.90643267]